[Event "*** Titled Tuesday 3|2 Blitz"]
[Site "Chess.com"]
[Date "2016.06.07"]
[Round "5"]
[White "SloLev"]
[Black "viktorskliarov"]
[Result "1/2-1/2"]
[WhiteElo "2098"]
[BlackElo "2353"]
[TimeControl "180+2"]
[EndTime "12:03:20 PDT"]
[Termination "Game drawn by repetition"]

1. d4 {[%clk 0:03:01.9]} 1... Nf6 {[%clk 0:02:57.6]} 2. Nf3 {[%clk 0:03:02.6]}
2... e6 {[%clk 0:02:58.7]} 3. Bg5 {[%clk 0:03:02.1]} 3... Be7 {[%clk 0:02:57.8]}
4. e3 {[%clk 0:03:02.9]} 4... O-O {[%clk 0:02:52.3]} 5. Bd3 {[%clk 0:03:02.7]}
5... c5 {[%clk 0:02:51.9]} 6. O-O {[%clk 0:03:02.1]} 6... b6 {[%clk 0:02:52.3]}
7. c3 {[%clk 0:02:59.3]} 7... Bb7 {[%clk 0:02:52.8]} 8. Nbd2 {[%clk 0:03:00.1]}
8... cxd4 {[%clk 0:02:48.6]} 9. exd4 {[%clk 0:03:00]} 9... Nd5 {[%clk
0:02:49.7]} 10. Bxe7 {[%clk 0:02:57.9]} 10... Qxe7 {[%clk 0:02:50.7]} 11. Re1
{[%clk 0:02:57.3]} 11... f5 {[%clk 0:02:49.5]} 12. c4 {[%clk 0:02:53.4]} 12...
Nf4 {[%clk 0:02:43.9]} 13. Bf1 {[%clk 0:02:53.8]} 13... Qf6 {[%clk 0:02:42.2]}
14. a4 {[%clk 0:02:46.2]} 14... Qg6 {[%clk 0:02:38.8]} 15. g3 {[%clk 0:02:44.2]}
15... Nh5 {[%clk 0:02:14]} 16. Ne5 {[%clk 0:02:41.8]} 16... Qe8 {[%clk
0:02:12.8]} 17. f4 {[%clk 0:02:30.3]} 17... Nc6 {[%clk 0:02:08.4]} 18. Ndf3
{[%clk 0:02:26.9]} 18... Nf6 {[%clk 0:02:05.6]} 19. d5 {[%clk 0:02:21.3]} 19...
Nxe5 {[%clk 0:02:04.3]} 20. Rxe5 {[%clk 0:02:21.2]} 20... Ne4 {[%clk 0:01:55.6]}
21. d6 {[%clk 0:02:10.4]} 21... Rc8 {[%clk 0:01:49.6]} 22. Nd2 {[%clk
0:02:08.5]} 22... Nxd6 {[%clk 0:01:43.7]} 23. b3 {[%clk 0:01:57.8]} 23... Ne4
{[%clk 0:01:42.3]} 24. Nxe4 {[%clk 0:01:57.1]} 24... Bxe4 {[%clk 0:01:35.2]} 25.
Qd6 {[%clk 0:01:57.7]} 25... Rc6 {[%clk 0:01:33.1]} 26. Qd4 {[%clk 0:01:53.9]}
26... d6 {[%clk 0:01:23.4]} 27. Rb5 {[%clk 0:01:43.3]} 27... Qh5 {[%clk
0:01:04.9]} 28. Qe3 {[%clk 0:01:35]} 28... d5 {[%clk 0:00:45.7]} 29. cxd5 {[%clk
0:01:30.6]} 29... Rc2 {[%clk 0:00:40.9]} 30. h4 {[%clk 0:01:30.8]} 30... exd5
{[%clk 0:00:26.8]} 31. a5 {[%clk 0:01:29.4]} 31... d4 {[%clk 0:00:26.2]} 32.
Qxe4 {[%clk 0:01:28.5]} 32... fxe4 {[%clk 0:00:21]} 33. Rxh5 {[%clk 0:01:28.1]}
33... e3 {[%clk 0:00:15.9]} 34. Bc4+ {[%clk 0:01:22.7]} 34... Kh8 {[%clk
0:00:16.4]} 35. Rxh7+ {[%clk 0:01:23.4]} 35... Kxh7 {[%clk 0:00:16.9]} 36. Bd3+
{[%clk 0:01:25.2]} 36... Kh6 {[%clk 0:00:18.5]} 37. Bxc2 {[%clk 0:01:26.9]}
37... Rc8 {[%clk 0:00:18.8]} 38. Bd3 {[%clk 0:01:27.6]} 38... Rc3 {[%clk
0:00:19.7]} 39. axb6 {[%clk 0:01:28.5]} 39... axb6 {[%clk 0:00:19]} 40. Bc4
{[%clk 0:01:27.9]} 40... d3 {[%clk 0:00:19.8]} 41. Rd1 {[%clk 0:01:27.7]} 41...
e2 {[%clk 0:00:19.1]} 42. Re1 {[%clk 0:01:27.8]} 42... Rxc4 {[%clk 0:00:15.2]}
43. bxc4 {[%clk 0:01:25]} 43... d2 {[%clk 0:00:16.5]} 44. Rxe2 {[%clk 0:01:25]}
44... d1=Q+ {[%clk 0:00:17.8]} 45. Kf2 {[%clk 0:01:26.4]} 45... Kh5 {[%clk
0:00:17.4]} 46. Re5+ {[%clk 0:01:27.1]} 46... Kg4 {[%clk 0:00:17.6]} 47. Rg5+
{[%clk 0:01:28.2]} 47... Kh3 {[%clk 0:00:19]} 48. Ke3 {[%clk 0:01:24.5]} 48...
Qd7 {[%clk 0:00:17.4]} 49. h5 {[%clk 0:01:21.7]} 49... Qe6+ {[%clk 0:00:17.6]}
50. Kd4 {[%clk 0:01:21.8]} 50... Kg2 {[%clk 0:00:18.6]} 51. Kc3 {[%clk
0:01:21.8]} 51... Kf3 {[%clk 0:00:18.7]} 52. Kb4 {[%clk 0:01:22.8]} 52... Qd7
{[%clk 0:00:18.2]} 53. Kc3 {[%clk 0:01:21.9]} 53... Qf7 {[%clk 0:00:18.3]} 54.
Kb4 {[%clk 0:01:22.9]} 54... Qf6 {[%clk 0:00:18]} 55. Kb5 {[%clk 0:01:21.7]}
55... Ke4 {[%clk 0:00:19]} 56. c5 {[%clk 0:01:20.2]} 56... bxc5 {[%clk
0:00:19.3]} 57. Kxc5 {[%clk 0:01:19.6]} 57... Qd4+ {[%clk 0:00:18.7]} 58. Kc6
{[%clk 0:01:20.5]} 58... Qf6+ {[%clk 0:00:18.8]} 59. Kd7 {[%clk 0:01:20.8]}
59... Kf3 {[%clk 0:00:19.5]} 60. Ke8 {[%clk 0:01:21.5]} 60... Ke4 {[%clk
0:00:19.7]} 61. Kd7 {[%clk 0:01:20.4]} 61... Kd4 {[%clk 0:00:20.6]} 62. Ke8
{[%clk 0:01:21.3]} 62... Ke3 {[%clk 0:00:21.3]} 63. Kd7 {[%clk 0:01:22.3]} 63...
Kf2 {[%clk 0:00:22.7]} 64. Ke8 {[%clk 0:01:23.5]} 64... Kg2 {[%clk 0:00:23]} 65.
Kd7 {[%clk 0:01:24.4]} 65... Kg1 {[%clk 0:00:23.8]} 66. Ke8 {[%clk 0:01:25.6]}
66... Kf2 {[%clk 0:00:25.7]} 67. Kd7 {[%clk 0:01:26.8]} 67... Ke2 {[%clk
0:00:27.3]} 68. Ke8 {[%clk 0:01:27.9]} 68... Kd3 {[%clk 0:00:28.4]} 69. Kd7
{[%clk 0:01:29.1]} 69... Kc4 {[%clk 0:00:29.8]} 70. Ke8 {[%clk 0:01:30.3]} 70...
Kd4 {[%clk 0:00:28.9]} 71. Kd7 {[%clk 0:01:31.3]} 71... Ke4 {[%clk 0:00:24]} 72.
Ke8 {[%clk 0:01:31.3]} 72... Kf3 {[%clk 0:00:20.5]} 73. Kd7 {[%clk 0:01:32.2]}
73... Ke4 {[%clk 0:00:20.1]} 74. Ke8 {[%clk 0:01:33.2]} 74... Kf3 {[%clk
0:00:20.6]} 75. Kd7 {[%clk 0:01:34.4]} 75... Ke4 {[%clk 0:00:21.8]} 76. Ke8
{[%clk 0:01:35.5]} 76... Kf3 {[%clk 0:00:23.2]} 77. Kd7 {[%clk 0:01:37.1]} 77...
Ke4 {[%clk 0:00:24.5]} 78. Ke8 {[%clk 0:01:38.7]} 78... Kf3 {[%clk 0:00:25.9]}
79. Kd7 {[%clk 0:01:40]} 79... Ke4 {[%clk 0:00:27.1]} 1/2-1/2

[Event "*** Titled Tuesday 3|2 Blitz"]
[Site "Chess.com"]
[Date "2016.06.07"]
[Round "5"]
[White "profofchess"]
[Black "aspired"]
[Result "0-1"]
[WhiteElo "2320"]
[BlackElo "2513"]
[TimeControl "180+2"]
[EndTime "12:03:54 PDT"]
[Termination "aspired won by resignation"]

1. e4 {[%clk 0:03:01.9]} 1... e5 {[%clk 0:03:00]} 2. f4 {[%clk 0:03:01.8]} 2...
d5 {[%clk 0:02:58.8]} 3. exd5 {[%clk 0:03:02.2]} 3... exf4 {[%clk 0:03:00]} 4.
Nf3 {[%clk 0:03:02.8]} 4... Nf6 {[%clk 0:02:59.7]} 5. Bc4 {[%clk 0:03:02.9]}
5... Nxd5 {[%clk 0:02:59.2]} 6. O-O {[%clk 0:03:03.7]} 6... Be7 {[%clk
0:02:59.5]} 7. d4 {[%clk 0:03:01.2]} 7... O-O {[%clk 0:02:56.8]} 8. Bxd5 {[%clk
0:02:58.1]} 8... Qxd5 {[%clk 0:02:58.7]} 9. Bxf4 {[%clk 0:02:59.8]} 9... c6
{[%clk 0:02:53.5]} 10. Nc3 {[%clk 0:02:57.6]} 10... Qh5 {[%clk 0:02:53.3]} 11.
Qe1 {[%clk 0:02:53.3]} 11... Bf6 {[%clk 0:02:48.7]} 12. Qg3 {[%clk 0:02:53.2]}
12... Nd7 {[%clk 0:02:46.5]} 13. Ne4 {[%clk 0:02:52.7]} 13... Qg6 {[%clk
0:02:44.1]} 14. Nxf6+ {[%clk 0:02:45.6]} 14... Nxf6 {[%clk 0:02:46]} 15. Qxg6
{[%clk 0:02:42.8]} 15... hxg6 {[%clk 0:02:44.8]} 16. Rfe1 {[%clk 0:02:40.1]}
16... Bf5 {[%clk 0:02:42.5]} 17. c3 {[%clk 0:02:33.8]} 17... Rfe8 {[%clk
0:02:42.5]} 18. Rxe8+ {[%clk 0:02:27.6]} 18... Rxe8 {[%clk 0:02:44.4]} 19. Re1
{[%clk 0:02:28.3]} 19... Rxe1+ {[%clk 0:02:42.3]} 20. Nxe1 {[%clk 0:02:30.2]}
20... Nd5 {[%clk 0:02:43.2]} 21. Bd2 {[%clk 0:02:30.5]} 21... Bb1 {[%clk
0:02:40.7]} 22. a3 {[%clk 0:02:26.8]} 22... f6 {[%clk 0:02:41.2]} 23. Kf2 {[%clk
0:02:19.9]} 23... g5 {[%clk 0:02:42.3]} 24. Ke2 {[%clk 0:02:16.2]} 24... Kf7
{[%clk 0:02:40.1]} 25. Nd3 {[%clk 0:02:16.9]} 25... Bxd3+ {[%clk 0:02:39.9]} 26.
Kxd3 {[%clk 0:02:17.9]} 26... Ke6 {[%clk 0:02:41.4]} 27. c4 {[%clk 0:02:17.7]}
27... Ne7 {[%clk 0:02:37.1]} 28. g4 {[%clk 0:02:16.3]} 28... a6 {[%clk
0:02:34.3]} 29. Ke4 {[%clk 0:02:13.7]} 29... b5 {[%clk 0:02:32.7]} 30. b3 {[%clk
0:02:14.5]} 30... bxc4 {[%clk 0:02:15.6]} 31. bxc4 {[%clk 0:02:15.1]} 31... Nc8
{[%clk 0:02:17.5]} 32. d5+ {[%clk 0:02:10.5]} 32... cxd5+ {[%clk 0:02:13.1]} 33.
cxd5+ {[%clk 0:02:12.4]} 33... Kd7 {[%clk 0:02:09.9]} 34. Kf5 {[%clk 0:01:31.5]}
34... Ne7+ {[%clk 0:02:08.8]} 35. Ke4 {[%clk 0:01:32.3]} 35... Nc8 {[%clk
0:02:06]} 36. Kf5 {[%clk 0:01:33.4]} 36... Nb6 {[%clk 0:02:04.8]} 37. Kg6 {[%clk
0:01:33.3]} 37... Nxd5 {[%clk 0:02:02.8]} 38. Kxg7 {[%clk 0:01:34.4]} 38... Ke6
{[%clk 0:02:00.4]} 39. Kh6 {[%clk 0:01:17.7]} 39... Kf7 {[%clk 0:01:30.5]} 40.
Kh7 {[%clk 0:00:47.6]} 40... Nb6 {[%clk 0:01:18.5]} 41. Kh6 {[%clk 0:00:46.2]}
41... Nc4 {[%clk 0:01:18.5]} 42. Bb4 {[%clk 0:00:45.7]} 42... Ne5 {[%clk
0:01:10.1]} 43. Kh5 {[%clk 0:00:46.4]} 43... Nf3 {[%clk 0:01:09]} 44. Bd6 {[%clk
0:00:36.3]} 44... Ke6 {[%clk 0:01:08.3]} 45. Bc7 {[%clk 0:00:36.5]} 45... Nd4
{[%clk 0:00:58.6]} 46. Bb6 {[%clk 0:00:29.5]} 46... Nb5 {[%clk 0:00:53.7]} 47.
Bc5 {[%clk 0:00:30.5]} 47... Nc3 {[%clk 0:00:50.9]} 48. h4 {[%clk 0:00:25.9]}
48... Ne4 {[%clk 0:00:46.8]} 49. hxg5 {[%clk 0:00:21.4]} 49... Nxc5 {[%clk
0:00:23.9]} 50. g6 {[%clk 0:00:22.6]} 50... Ke7 {[%clk 0:00:21.3]} 51. Kh6
{[%clk 0:00:23.3]} 51... Ne6 {[%clk 0:00:19.8]} 52. g7 {[%clk 0:00:13.5]} 52...
Kf7 {[%clk 0:00:16.5]} 53. g8=Q+ {[%clk 0:00:14.7]} 53... Kxg8 {[%clk
0:00:17.7]} 54. Kg6 {[%clk 0:00:16.2]} 54... Nd4 {[%clk 0:00:14.6]} 55. Kxf6
{[%clk 0:00:17.6]} 55... a5 {[%clk 0:00:13]} 56. Ke5 {[%clk 0:00:16.3]} 56...
Nb5 {[%clk 0:00:13.3]} 57. a4 {[%clk 0:00:16.5]} 57... Nc3 {[%clk 0:00:14.2]}
58. Kd4 {[%clk 0:00:17.1]} 58... Nxa4 {[%clk 0:00:15]} 59. Kc4 {[%clk
0:00:16.1]} 59... Nb6+ {[%clk 0:00:16.1]} 60. Kb5 {[%clk 0:00:17.2]} 60... a4
{[%clk 0:00:18]} 61. Kb4 {[%clk 0:00:17.5]} 61... Kg7 {[%clk 0:00:19.3]} 62. Kb5
{[%clk 0:00:18.9]} 62... Kg6 {[%clk 0:00:20.7]} 63. Kb4 {[%clk 0:00:20.3]} 63...
Kg5 {[%clk 0:00:21.9]} 64. Ka3 {[%clk 0:00:21.9]} 64... Kxg4 {[%clk 0:00:23.1]}
65. Ka2 {[%clk 0:00:23.8]} 65... Kf5 {[%clk 0:00:24.3]} 66. Kb2 {[%clk
0:00:25.7]} 66... Ke5 {[%clk 0:00:25.7]} 67. Ka2 {[%clk 0:00:26.8]} 67... Kd5
{[%clk 0:00:27.6]} 68. Kb2 {[%clk 0:00:27.3]} 68... Kc5 {[%clk 0:00:29.5]} 69.
Ka2 {[%clk 0:00:29.2]} 69... Kb4 {[%clk 0:00:30.5]} 70. Kb2 {[%clk 0:00:31.1]}
70... Nc4+ {[%clk 0:00:30.7]} 71. Ka2 {[%clk 0:00:33]} 71... a3 {[%clk
0:00:31.9]} 72. Ka1 {[%clk 0:00:33.8]} 72... Kb3 {[%clk 0:00:33.2]} 73. Kb1
{[%clk 0:00:35.1]} 73... Na5 {[%clk 0:00:34.1]} 74. Ka1 {[%clk 0:00:35.8]} 74...
Nc6 {[%clk 0:00:35.3]} 75. Kb1 {[%clk 0:00:37.3]} 75... Nb4 {[%clk 0:00:36.2]}
76. Ka1 {[%clk 0:00:37.8]} 76... Nc2+ {[%clk 0:00:37.3]} 0-1

[Event "*** Titled Tuesday 3|2 Blitz"]
[Site "Chess.com"]
[Date "2016.06.07"]
[Round "5"]
[White "FairChess_on_YouTube"]
[Black "AlexanderL"]
[Result "1-0"]
[WhiteElo "2721"]
[BlackElo "2597"]
[TimeControl "180+2"]
[EndTime "12:04:00 PDT"]
[Termination "FairChess_on_YouTube won by resignation"]

1. d4 {[%clk 0:03:01.9]} 1... d5 {[%clk 0:02:59.2]} 2. Nf3 {[%clk 0:03:01.3]}
2... Nf6 {[%clk 0:02:58.6]} 3. Bf4 {[%clk 0:03:02.8]} 3... Bf5 {[%clk
0:02:57.6]} 4. e3 {[%clk 0:03:02.4]} 4... e6 {[%clk 0:02:57.7]} 5. Bd3 {[%clk
0:03:03.1]} 5... Bxd3 {[%clk 0:02:57.7]} 6. Qxd3 {[%clk 0:03:03.6]} 6... c5
{[%clk 0:02:54.5]} 7. O-O {[%clk 0:02:53]} 7... Nc6 {[%clk 0:02:53.9]} 8. c3
{[%clk 0:02:48]} 8... Be7 {[%clk 0:02:46.1]} 9. Nbd2 {[%clk 0:02:48.3]} 9... O-O
{[%clk 0:02:47]} 10. a4 {[%clk 0:02:48.8]} 10... Nh5 {[%clk 0:02:44.8]} 11. Be5
{[%clk 0:02:48.1]} 11... f6 {[%clk 0:02:44.5]} 12. Bg3 {[%clk 0:02:47.7]} 12...
Nxg3 {[%clk 0:02:44.7]} 13. hxg3 {[%clk 0:02:49.6]} 13... Qd7 {[%clk 0:02:36.6]}
14. Qe2 {[%clk 0:02:32.8]} 14... f5 {[%clk 0:02:24.6]} 15. Ne1 {[%clk
0:02:05.9]} 15... Rac8 {[%clk 0:02:13.4]} 16. f4 {[%clk 0:02:05.1]} 16... b6
{[%clk 0:02:01.2]} 17. Nd3 {[%clk 0:02:04.7]} 17... c4 {[%clk 0:02:00.8]} 18.
Ne5 {[%clk 0:02:01.6]} 18... Nxe5 {[%clk 0:02:01.5]} 19. dxe5 {[%clk 0:02:03.5]}
19... Bc5 {[%clk 0:01:58.5]} 20. Nf3 {[%clk 0:02:02.2]} 20... h6 {[%clk
0:01:56.1]} 21. Nd4 {[%clk 0:02:01.5]} 21... Qf7 {[%clk 0:01:51.7]} 22. Kf2
{[%clk 0:01:55.2]} 22... Qg6 {[%clk 0:01:50.1]} 23. Rh1 {[%clk 0:01:54.2]} 23...
Bxd4 {[%clk 0:01:46.4]} 24. exd4 {[%clk 0:01:54.8]} 24... Kf7 {[%clk 0:01:45.8]}
25. Rh4 {[%clk 0:01:50.7]} 25... Ke7 {[%clk 0:01:40.6]} 26. Qf1 {[%clk
0:01:44.5]} 26... Qe8 {[%clk 0:01:37.2]} 27. Qb1 {[%clk 0:01:41.3]} 27... h5
{[%clk 0:01:27.2]} 28. Qa2 {[%clk 0:01:36.4]} 28... g6 {[%clk 0:01:26.8]} 29.
Qa3+ {[%clk 0:01:27.2]} 29... Kf7 {[%clk 0:01:27]} 30. Rhh1 {[%clk 0:01:24.1]}
30... Qe7 {[%clk 0:01:27.1]} 31. Qa2 {[%clk 0:01:11.5]} 31... Rc7 {[%clk
0:01:25.5]} 32. Kg1 {[%clk 0:01:10.7]} 32... Rh8 {[%clk 0:01:24.4]} 33. Qa3
{[%clk 0:01:08.1]} 33... Rb8 {[%clk 0:01:14.4]} 34. Kh2 {[%clk 0:01:04.9]} 34...
Rcb7 {[%clk 0:00:57.7]} 35. Kh3 {[%clk 0:00:53.9]} 35... a5 {[%clk 0:00:51.2]}
36. Qxe7+ {[%clk 0:00:48.8]} 36... Kxe7 {[%clk 0:00:46.6]} 37. Kh4 {[%clk
0:00:49.8]} 37... Kf7 {[%clk 0:00:46.6]} 38. Kg5 {[%clk 0:00:34.6]} 38... b5
{[%clk 0:00:46.3]} 39. axb5 {[%clk 0:00:34.9]} 39... Rxb5 {[%clk 0:00:48.2]} 40.
Rhb1 {[%clk 0:00:23.6]} 40... Kg7 {[%clk 0:00:31.2]} 41. Ra2 {[%clk 0:00:24.2]}
41... R8b7 {[%clk 0:00:31.9]} 42. Rba1 {[%clk 0:00:20.4]} 42... Ra7 {[%clk
0:00:31.9]} 43. Ra3 {[%clk 0:00:15]} 43... Ra8 {[%clk 0:00:27]} 44. R1a2 {[%clk
0:00:16]} 44... Ra7 {[%clk 0:00:27.6]} 45. Ra4 {[%clk 0:00:17.3]} 45... Ra8
{[%clk 0:00:28.1]} 46. R4a3 {[%clk 0:00:18.4]} 46... Ra7 {[%clk 0:00:29.1]} 47.
Ra4 {[%clk 0:00:19.6]} 47... Ra8 {[%clk 0:00:30.3]} 48. Rb4 {[%clk 0:00:18.6]}
48... Rxb4 {[%clk 0:00:15.6]} 49. cxb4 {[%clk 0:00:19.2]} 49... a4 {[%clk
0:00:17]} 50. b5 {[%clk 0:00:18.9]} 50... Kf7 {[%clk 0:00:18.1]} 51. b6 {[%clk
0:00:19]} 51... Ke7 {[%clk 0:00:18.6]} 52. Kxg6 {[%clk 0:00:18.4]} 52... Rg8+
{[%clk 0:00:15.7]} 53. Kxh5 {[%clk 0:00:17.8]} 53... Kd7 {[%clk 0:00:14]} 54.
Rxa4 {[%clk 0:00:16.2]} 54... Kc6 {[%clk 0:00:15.3]} 55. Ra6 {[%clk 0:00:12.8]}
55... Kb7 {[%clk 0:00:12]} 56. Ra7+ {[%clk 0:00:13.8]} 56... Kxb6 {[%clk
0:00:13.2]} 57. Re7 {[%clk 0:00:15.7]} 57... Rxg3 {[%clk 0:00:13.8]} 58. Rxe6+
{[%clk 0:00:16.9]} 58... Kc7 {[%clk 0:00:15]} 59. Rd6 {[%clk 0:00:13.6]} 59...
Rxg2 {[%clk 0:00:08.4]} 60. Rxd5 {[%clk 0:00:14.3]} 60... Rxb2 {[%clk
0:00:09.5]} 61. Rc5+ {[%clk 0:00:10.5]} 61... Kd7 {[%clk 0:00:10.7]} 62. Kg5
{[%clk 0:00:11.6]} 62... Ke6 {[%clk 0:00:09.6]} 63. d5+ {[%clk 0:00:12.1]} 63...
Kd7 {[%clk 0:00:09.5]} 64. Kxf5 {[%clk 0:00:14]} 64... Rc2 {[%clk 0:00:10.3]}
65. Kf6 {[%clk 0:00:14.2]} 1-0

[Event "*** Titled Tuesday 3|2 Blitz"]
[Site "Chess.com"]
[Date "2016.06.07"]
[Round "5"]
[White "silverback96"]
[Black "bilelou"]
[Result "1-0"]
[WhiteElo "2052"]
[BlackElo "2152"]
[TimeControl "180+2"]
[EndTime "12:04:24 PDT"]
[Termination "silverback96 won by resignation"]

1. Nf3 {[%clk 0:02:43.1]} 1... d5 {[%clk 0:02:51.4]} 2. g3 {[%clk 0:02:45]} 2...
Nc6 {[%clk 0:02:49.4]} 3. Bg2 {[%clk 0:02:46.9]} 3... e5 {[%clk 0:02:50.7]} 4.
c4 {[%clk 0:02:45.9]} 4... e4 {[%clk 0:02:49.7]} 5. cxd5 {[%clk 0:02:46.9]} 5...
exf3 {[%clk 0:02:50.4]} 6. Bxf3 {[%clk 0:02:45.8]} 6... Ne5 {[%clk 0:02:51]} 7.
Bg2 {[%clk 0:02:45.3]} 7... Nf6 {[%clk 0:02:52.6]} 8. f4 {[%clk 0:02:46.5]} 8...
Ng6 {[%clk 0:02:51.3]} 9. e4 {[%clk 0:02:46.9]} 9... Bc5 {[%clk 0:02:52]} 10. d4
{[%clk 0:02:46.6]} 10... Bb6 {[%clk 0:02:53]} 11. Nc3 {[%clk 0:02:34.8]} 11...
O-O {[%clk 0:02:44.6]} 12. h3 {[%clk 0:02:31]} 12... Re8 {[%clk 0:02:29.2]} 13.
O-O {[%clk 0:02:27.8]} 13... c6 {[%clk 0:02:30.6]} 14. dxc6 {[%clk 0:02:25.7]}
14... Qxd4+ {[%clk 0:02:30.8]} 15. Kh2 {[%clk 0:02:24.5]} 15... bxc6 {[%clk
0:02:30.7]} 16. e5 {[%clk 0:02:23.8]} 16... Nd5 {[%clk 0:02:31.5]} 17. Nxd5
{[%clk 0:02:24.4]} 17... cxd5 {[%clk 0:02:33]} 18. Bxd5 {[%clk 0:02:25.7]} 18...
Qxd1 {[%clk 0:02:26.8]} 19. Rxd1 {[%clk 0:02:27.6]} 19... Rb8 {[%clk 0:02:27.1]}
20. Bd2 {[%clk 0:02:12.6]} 20... Be6 {[%clk 0:02:14.7]} 21. Be4 {[%clk
0:02:08.5]} 21... Ne7 {[%clk 0:02:10.4]} 22. g4 {[%clk 0:02:08.8]} 22... Bd5
{[%clk 0:02:07.1]} 23. Bb1 {[%clk 0:01:59.8]} 23... Red8 {[%clk 0:02:01.4]} 24.
Bb4 {[%clk 0:01:59.3]} 24... Ng6 {[%clk 0:01:55.6]} 25. Bd6 {[%clk 0:02:00.4]}
25... Bb7 {[%clk 0:01:53.3]} 26. Bxg6 {[%clk 0:01:59.7]} 26... hxg6 {[%clk
0:01:52.4]} 27. Bxb8 {[%clk 0:02:00.9]} 27... Rxb8 {[%clk 0:01:54.1]} 28. Rd7
{[%clk 0:01:59]} 28... Bc6 {[%clk 0:01:55.2]} 29. Rd6 {[%clk 0:02:00.2]} 29...
Bb7 {[%clk 0:01:56.4]} 30. Rd7 {[%clk 0:01:59.3]} 30... g5 {[%clk 0:01:53]} 31.
fxg5 {[%clk 0:01:59.3]} 31... Bc6 {[%clk 0:01:53.5]} 32. Rd6 {[%clk 0:01:59.8]}
32... Be4 {[%clk 0:01:54.7]} 33. Rd7 {[%clk 0:01:58.3]} 33... Re8 {[%clk
0:01:53.9]} 34. Rf1 {[%clk 0:01:57.9]} 34... Bg6 {[%clk 0:01:53.9]} 35. h4
{[%clk 0:01:53.6]} 35... Rxe5 {[%clk 0:01:54.2]} 36. h5 {[%clk 0:01:55]} 36...
Re2+ {[%clk 0:01:51.7]} 37. Kh3 {[%clk 0:01:56.3]} 37... Re3+ {[%clk 0:01:51.6]}
38. Kh2 {[%clk 0:01:56.6]} 38... Rd3 {[%clk 0:01:44.3]} 39. Re7 {[%clk
0:01:45.1]} 39... Rd2+ {[%clk 0:01:45.1]} 40. Kh3 {[%clk 0:01:45.4]} 40... Rd3+
{[%clk 0:01:35.6]} 41. Kh2 {[%clk 0:01:46.6]} 41... Rd2+ {[%clk 0:01:35.8]} 42.
Kh3 {[%clk 0:01:48]} 42... Bd3 {[%clk 0:01:34.7]} 43. Rfxf7 {[%clk 0:01:46.2]}
43... Bc4 {[%clk 0:01:31.2]} 44. Rxg7+ {[%clk 0:01:46.5]} 44... Kf8 {[%clk
0:01:32.1]} 45. g6 {[%clk 0:01:38.7]} 45... Rd3+ {[%clk 0:01:28.3]} 46. Kh2
{[%clk 0:01:26.6]} 46... Rd2+ {[%clk 0:01:26.5]} 47. Kh3 {[%clk 0:01:26.9]}
47... Rd3+ {[%clk 0:01:27.6]} 48. Kg2 {[%clk 0:01:19.5]} 48... Bd5+ {[%clk
0:01:26.3]} 49. Kf1 {[%clk 0:01:20.2]} 49... Rf3+ {[%clk 0:01:19.3]} 50. Ke1
{[%clk 0:01:21.6]} 50... Ba5+ {[%clk 0:01:19.3]} 51. Ke2 {[%clk 0:01:19.4]}
51... Bb6 {[%clk 0:01:18.5]} 52. Rh7 {[%clk 0:01:14.2]} 52... Rf2+ {[%clk
0:01:18.7]} 53. Kd3 {[%clk 0:01:13.6]} 53... Rf3+ {[%clk 0:01:19.3]} 54. Ke2
{[%clk 0:01:13.9]} 54... Rf2+ {[%clk 0:01:19]} 55. Kd3 {[%clk 0:01:15.1]} 55...
Rf3+ {[%clk 0:01:20]} 56. Kc2 {[%clk 0:01:16.5]} 56... Rf2+ {[%clk 0:01:21]} 57.
Kc3 {[%clk 0:01:17.8]} 57... Rf3+ {[%clk 0:01:20.6]} 58. Kb4 {[%clk 0:01:19]}
58... Rf4+ {[%clk 0:01:21.7]} 59. Kb5 {[%clk 0:01:19.1]} 59... Bc4+ {[%clk
0:01:05.5]} 60. Kc6 {[%clk 0:01:14.6]} 60... Rf6+ {[%clk 0:01:05.9]} 61. Kb7
{[%clk 0:01:14.3]} 61... Bd5+ {[%clk 0:01:06.5]} 62. Kb8 {[%clk 0:01:12.8]}
62... Bg8 {[%clk 0:01:05.8]} 63. Rhg7 {[%clk 0:00:53.9]} 63... Bc5 {[%clk
0:00:59.5]} 64. Rd7 {[%clk 0:00:52.7]} 64... Rb6+ {[%clk 0:00:55.9]} 65. Ka8
{[%clk 0:00:46.4]} 65... Rxb2 {[%clk 0:00:54.8]} 66. Rxg8+ {[%clk 0:00:32.9]}
66... Kxg8 {[%clk 0:00:55.5]} 67. h6 {[%clk 0:00:34.8]} 67... Bf8 {[%clk
0:00:32.5]} 68. h7+ {[%clk 0:00:28.4]} 68... Kh8 {[%clk 0:00:33.2]} 69. Rd8
{[%clk 0:00:23.5]} 69... Kg7 {[%clk 0:00:33.1]} 70. Rxf8 {[%clk 0:00:22.5]}
70... Rh2 {[%clk 0:00:31.7]} 71. Rg8+ {[%clk 0:00:22.8]} 71... Kf6 {[%clk
0:00:20.1]} 1-0